[Event "CZE-ch U12 Open 2023"]
[Site "Teplice"]
[Date "2023.03.13"]
[Round "4.1"]
[White "Mydlar, Matej"]
[Black "Sochor, Antonin"]
[Result "1-0"]
[ECO "B28"]
[WhiteElo "1586"]
[BlackElo "1574"]
[Annotator "NA RC COMBH"]
[PlyCount "103"]
[EventDate "2023.03.09"]
[EventType "swiss"]
[EventCountry "CZE"]
[SourceTitle "playchess.com"]
[Source "ChessBase"]
[SourceQuality "1"]
[TimeControl "40/5400+30:1800+30"]

1. e4 {[%emt 0:00:05]} c5 {[%emt 0:00:07]} 2. Nf3 {[%emt 0:00:03]} a6 {[%emt 0:00:09]} 3. c4 {[%emt 0:00:05]} e6 {[%emt 0:00:29]} 4. d4 {[%emt 0:00:15]} cxd4 {[%emt 0:00:07]} 5. Nxd4 {[%emt 0:00:06]} Nc6 {[%emt 0:00:15]} 6. Be3 {[%emt 0:00:23]} Nf6 {[%emt 0:00:47]} 7. Nc3 {[%emt 0:01:12]} Bb4 {[%emt 0:00:08]} 8. f3 {[%emt 0:00:43]} O-O {[%emt 0:02:22]} 9. Be2 {[%emt 0:09:03]} d5 {[%emt 0:06:48]} 10. cxd5 {[%emt 0:07:33]} exd5 {[%emt 0:00:27]} 11. Nxc6 {[%emt 0:00:24]} bxc6 {[%emt 0:00:23]} 12. e5 {[%emt 0:00:28]} Nd7 {[%emt 0:00:19]} 13. f4 {[%emt 0:00:36]} Bc5 {[%emt 0:06:52]} 14. Bxc5 {[%emt 0:02:13]} Nxc5 {[%emt 0:00:11]} 15. O-O {[%emt 0:06:04]} f6 {[%emt 0:02:47]} 16. b4 {[%emt 0:07:45]} Nb7 {[%emt 0:02:18]} 17. Qd4 {[%emt 0:07:18]} fxe5 {[%emt 0:02:14]} 18. fxe5 {[%emt 0:01:36]} Bf5 {[%emt 0:02:05]} 19. Bf3 {[%emt 0:01:05]} Kh8 {[%emt 0:03:42]} 20. Rae1 {[%emt 0:00:45]} Qd7 {[%emt 0:01:37]} 21. Na4 {[%emt 0:01:13]} Rae8 {[%emt 0:02:31]} 22. Bh5 {[%emt 0:01:37]} Rb8 {[%emt 0:09:07]} 23. Qf4 {[%emt 0:09:41]} Qe7 {[%emt 0:03:15]} 24. Qd4 {[%emt 0:04:54]} h6 {[%emt 0:08:40]} 25. Re3 {[%emt 0:04:00]} Be4 {[%emt 0:02:05]} 26. Bf3 {[%emt 0:01:03]} Bxf3 {[%emt 0:07:04]} 27. Rexf3 {[%emt 0:00:51]} Rxf3 {[%emt 0:00:51]} 28. gxf3 {[%emt 0:00:38]} Nd8 {[%emt 0:00:56]} 29. Nc5 {[%emt 0:00:13]} Ne6 {[%emt 0:02:00]} 30. Nxe6 {[%emt 0:00:06]} Qxe6 {[%emt 0:00:07]} 31. f4 {[%emt 0:01:10]} Qf5 {[%emt 0:06:49]} 32. a3 {[%emt 0:00:56]} Qg4+ {[%emt 0:02:13]} 33. Kh1 {[%emt 0:00:23]} Re8 {[%emt 0:01:57]} 34. Qd3 {[%emt 0:03:26]} Qd7 {[%emt 0:06:48]} 35. Qd4 {[%emt 0:02:30]} Qf5 {[%emt 0:01:32]} 36. Rc1 {[%emt 0:01:44]} Re6 {[%emt 0:02:04]} 37. Rg1 {[%emt 0:06:11]} Re7 {[%emt 0:00:43]} 38. Rg3 {[%emt 0:01:22]} Qb1+ {[%emt 0:00:58]} 39. Kg2 {[%emt 0:01:08]} Qc2+ {[%emt 0:00:43]} 40. Qf2 {[%emt 0:01:29]} Qe4+ {[%emt 0:00:24]} 41. Qf3 {[%emt 0:30:23]} Qc2+ {[%emt 0:30:16]} 42. Kh3 {[%emt 0:00:10]} d4 {[%emt 0:09:20]} 43. Qd3 {[%emt 0:00:47]} Qb2 {[%emt 0:01:18]} 44. Qxa6 {[%emt 0:00:22]} Qc1 {[%emt 0:01:02]} 45. Qc8+ {[%emt 0:00:23]} Kh7 {[%emt 0:00:22]} 46. Qf5+ {[%emt 0:00:03]} Kg8 {[%emt 0:01:04]} 47. Qe4 {[%emt 0:07:10]} Qf1+ {[%emt 0:01:41]} 48. Kg4 {[%emt 0:00:57]} Qd1+ {[%emt 0:01:07]} 49. Qf3 {[%emt 0:00:11]} Qc1 {[%emt 0:00:15]} 50. Kh3 {[%emt 0:00:26]} Kh8 {[%emt 0:01:00]} 51. f5 {[%emt 0:02:57]} Qc4 {[%emt 0:02:33]} 52. e6 {[%emt 0:01:29]} 1-0

[Event "CZE-ch U12 Open 2023"]
[Site "Teplice"]
[Date "2023.03.13"]
[Round "4.2"]
[White "Boff, Ondrej"]
[Black "Policar, Martin"]
[Result "0-1"]
[ECO "C05"]
[WhiteElo "1561"]
[BlackElo "1552"]
[Annotator "NA RC COMBH"]
[PlyCount "48"]
[EventDate "2023.03.09"]
[EventType "swiss"]
[EventCountry "CZE"]
[SourceTitle "playchess.com"]
[Source "ChessBase"]
[SourceQuality "1"]
[TimeControl "40/5400+30:1800+30"]

1. e4 {[%emt 0:00:06]} e6 {[%emt 0:00:03]} 2. d4 {[%emt 0:00:10]} d5 {[%emt 0:00:04]} 3. Bd3 {[%emt 0:00:08]} Nf6 {[%emt 0:00:25]} 4. e5 {[%emt 0:03:59]} Nfd7 {[%emt 0:00:35]} 5. Nd2 {[%emt 0:00:34]} c5 {[%emt 0:00:53]} 6. c3 {[%emt 0:00:07]} Nc6 {[%emt 0:00:08]} 7. Ne2 {[%emt 0:00:10]} Be7 {[%emt 0:01:27]} 8. Qc2 {[%emt 0:02:17]} c4 {[%emt 0:01:47]} 9. Bxh7 {[%emt 0:01:36]} Nf8 {[%emt 0:00:00]} 10. Be4 {[%emt 0:02:14]} dxe4 {[%emt 0:00:42]} 11. Nxc4 {[%emt 0:00:54]} b6 {[%emt 0:01:05]} 12. Ng3 {[%emt 0:01:32]} e3 {[%emt 0:02:28]} 13. f3 {[%emt 0:04:44]} Ba6 {[%emt 0:01:18]} 14. b3 {[%emt 0:08:56]} Bxc4 {[%emt 0:05:34]} 15. bxc4 {[%emt 0:00:45]} Bh4 {[%emt 0:00:21]} 16. Rg1 {[%emt 0:03:19]} Qg5 {[%emt 0:01:36]} 17. Qa4 {[%emt 0:03:07]} Bxg3+ {[%emt 0:00:27]} 18. hxg3 {[%emt 0:02:08]} Qxg3+ {[%emt 0:00:09]} 19. Kd1 {[%emt 0:00:07]} Rc8 {[%emt 0:00:43]} 20. d5 {[%emt 0:01:00]} Qf2 {[%emt 0:00:14]} 21. Bxe3 {[%emt 0:16:59]} Qxe3 {[%emt 0:00:17]} 22. Kc2 {[%emt 0:01:37]} Qe2+ {[%emt 0:00:48]} 23. Kb3 {[%emt 0:00:59]} b5 {[%emt 0:00:45]} 24. Qxb5 {[%emt 0:01:33]} Rb8 {[%emt 0:00:16]} 0-1

[Event "CZE-ch U12 Open 2023"]
[Site "Teplice"]
[Date "2023.03.13"]
[Round "4.3"]
[White "Mik, Tomas"]
[Black "Chernyy, Andrey"]
[Result "1/2-1/2"]
[ECO "C49"]
[WhiteElo "1911"]
[BlackElo "1605"]
[Annotator "TA"]
[PlyCount "60"]
[EventDate "2023.03.09"]
[EventType "swiss"]
[EventCountry "CZE"]
[SourceTitle "playchess.com"]
[Source "ChessBase"]
[SourceQuality "1"]
[TimeControl "40/5400+30:1800+30"]

{[%evp 15,60,15,21,21,18,11,17,-4,12,-20,26,-17,60,52,59,54,47,-68,-72,-71,-81,-84,-82,-84,-89,-93,-91,-105,-109,-110,-112,-113,-90,-114,-107,-122,-128,-137,-143,-140,-85,-77,-43,-52,-44,-64,-37]} 1. e4 {[%emt 0:00:03]} e5 {[%emt 0:00:03]} 2. Nf3 {[%emt 0:00:08]} Nc6 {[%emt 0:00:05]} 3. Nc3 {[%emt 0:00:06]} Nf6 {[%emt 0:00:09]} 4. Bb5 {[%emt 0:00:07]} Bb4 {[%emt 0:00:06]} 5. O-O {[%emt 0:00:10]} O-O {[%emt 0:00:06]} 6. d3 {[%emt 0:00:04]} d6 {[%emt 0:00:06]} 7. Ne2 {[%emt 0:00:34]} Ne7 {[%emt 0:00:13]} 8. c3 {[%emt 0:02:10]} Ba5 {[%emt 0:00:36]} 9. Ng3 {[%emt 0:00:34] C49: Four Knights: 4 Bb5 Bb4.} c6 {[%emt 0:01:25]} 10. Ba4 {[%emt 0:00:19]} Ng6 {[%emt 0:00:25]} 11. Be3 {[%emt 0:03:35] The position is equal.} h6 {[%emt 0:03:19]} 12. h3 {[%emt 0:01:04]} Be6 {[%emt 0:01:00] [#]} (12... d5 $142) 13. Qd2 $146 {[%emt 0:04:56]} ({Predecessor:} 13. Qe2 Bc7 14. d4 d5 15. dxe5 Nxe5 16. Bc5 Re8 17. Nxe5 Bxe5 18. f4 Bc7 19. e5 Nh7 20. Bc2 Bc8 21. Qd3 Nf8 22. Nh5 Bb6 23. Bf2 Qh4 24. Ng3 {1-0 Pham Quoc Rang,S-La Nguyen Thao,N Ho Chi Minh (Women) 4th rapid 1999 (6)}) 13... Kh7 {[%emt 0:03:55]} ({Better is} 13... Re8 $11) 14. d4 $14 {[%emt 0:04:49]} Bc7 {[%emt 0:04:14]} 15. Rad1 {[%emt 0:03:01]} Qe7 {[%emt 0:01:10]} 16. Nf5 {[%emt 0:01:37] [#]} ({White should play} 16. Qc2 $14) 16... Nxe4 $1 $15 {[%emt 0:06:34]} 17. Nxe7 {[%emt 0:01:03]} Nxd2 {[%emt 0:01:20]} 18. Rxd2 {[%emt 0:00:52] aiming for Bc2.} Nxe7 {[%emt 0:00:10]} 19. dxe5 {[%emt 0:01:25]} dxe5 {[%emt 0:00:05]} (19... Bxa2 $2 20. exd6 Bxd6 21. Rxd6 $18) 20. Bc5 {[%emt 0:00:11]} Rfe8 {[%emt 0:00:18]} 21. Bc2+ {[%emt 0:00:59]} Kg8 {[%emt 0:08:45]} 22. Bd6 {[%emt 0:01:11]} Bxd6 {[%emt 0:03:48]} 23. Rxd6 {[%emt 0:00:46]} Nf5 {[%emt 0:00:45]} 24. Bxf5 {[%emt 0:00:53]} Bxf5 {[%emt 0:00:02]} 25. Rfd1 {[%emt 0:00:11]} f6 {[%emt 0:02:02]} 26. Nh4 {[%emt 0:02:15]} Be6 {[%emt 0:00:29]} 27. g4 {[%emt 0:05:17]} Kf7 {[%emt 0:06:13]} ({And not} 27... Bxa2 28. Rd7 $15) (27... h5 $142 28. Nf5 hxg4 29. hxg4 g6) 28. Nf5 $17 {[%emt 0:01:24][%cal Od6e6]} Bxf5 {[%emt 0:06:41]} ({Don't play} 28... Bxa2 29. Rd7+ Kf8 30. Rxg7 $14 (30. Nxg7 Re7 $14) (30. Rxb7 Red8 $14)) 29. gxf5 {[%emt 0:00:17]} Re7 {[%emt 0:01:34]} 30. Kg2 {[%emt 0:02:19]} Rae8 {[%emt 0:03:46] Weighted Error Value: White=0.16 (very precise) /Black=0.16 (very precise)} 1/2-1/2

[Event "CZE-ch U12 Open 2023"]
[Site "Teplice"]
[Date "2023.03.13"]
[Round "4.4"]
[White "Kroulik, Vaclav"]
[Black "Frantsev, Iegor"]
[Result "1-0"]
[ECO "B11"]
[WhiteElo "1772"]
[BlackElo "1424"]
[Annotator "NA RC COMBH"]
[PlyCount "51"]
[EventDate "2023.03.09"]
[EventType "swiss"]
[EventCountry "CZE"]
[SourceTitle "playchess.com"]
[Source "ChessBase"]
[SourceQuality "1"]
[TimeControl "40/5400+30:1800+30"]

1. e4 {[%emt 0:00:02]} c6 {[%emt 0:00:05]} 2. Nf3 {[%emt 0:00:04]} d5 {[%emt 0:00:12]} 3. Nc3 {[%emt 0:00:04]} Bg4 {[%emt 0:00:19]} 4. h3 {[%emt 0:00:07]} Bxf3 {[%emt 0:00:07]} 5. Qxf3 {[%emt 0:00:05]} e6 {[%emt 0:00:03]} 6. d4 {[%emt 0:00:12]} Bd6 {[%emt 0:02:23]} 7. Bd3 {[%emt 0:00:42]} Nd7 {[%emt 0:04:12]} 8. O-O {[%emt 0:02:09]} Ne7 {[%emt 0:11:19]} 9. Re1 {[%emt 0:04:04]} O-O {[%emt 0:02:41]} 10. e5 {[%emt 0:00:43]} Bc7 {[%emt 0:03:18]} 11. Ne2 {[%emt 0:06:39]} Ng6 {[%emt 0:04:14]} 12. Nf4 {[%emt 0:02:00]} c5 {[%emt 0:03:10]} 13. c3 {[%emt 0:01:15]} cxd4 {[%emt 0:05:20]} 14. cxd4 {[%emt 0:00:09]} Bb6 {[%emt 0:00:31]} 15. Be3 {[%emt 0:01:13]} Rc8 {[%emt 0:07:20]} 16. Nxg6 {[%emt 0:00:33]} hxg6 {[%emt 0:01:31]} 17. Qg4 {[%emt 0:02:22]} Qe7 {[%emt 0:20:40]} 18. a3 {[%emt 0:01:21]} a6 {[%emt 0:07:00]} 19. h4 {[%emt 0:02:06]} Nb8 {[%emt 0:08:46]} 20. h5 {[%emt 0:05:07]} gxh5 {[%emt 0:04:36]} 21. Qxh5 {[%emt 0:00:10]} g6 {[%emt 0:00:00]} 22. Qh6 {[%emt 0:02:19]} Bd8 {[%emt 0:00:00]} 23. g3 {[%emt 0:01:36]} Re8 {[%emt 0:00:26]} 24. Bxg6 {[%emt 0:05:37]} fxg6 {[%emt 0:00:28]} 25. Qxg6+ {[%emt 0:00:07]} Kh8 {[%emt 0:00:30]} 26. Kg2 {[%emt 0:00:08]} 1-0

[Event "CZE-ch U12 Open 2023"]
[Site "Teplice"]
[Date "2023.03.13"]
[Round "4.5"]
[White "Sochor, Vaclav"]
[Black "Bara, Jan"]
[Result "1/2-1/2"]
[ECO "B21"]
[WhiteElo "1503"]
[BlackElo "1712"]
[Annotator "NA RC COMBH"]
[PlyCount "69"]
[EventDate "2023.03.09"]
[EventType "swiss"]
[EventCountry "CZE"]
[SourceTitle "playchess.com"]
[Source "ChessBase"]
[SourceQuality "1"]
[TimeControl "40/5400+30:1800+30"]

1. e4 {[%emt 0:00:16]} c5 {[%emt 0:00:01]} 2. d4 {[%emt 0:00:18]} cxd4 {[%emt 0:00:06]} 3. c3 {[%emt 0:00:26]} d3 {[%emt 0:00:11]} 4. Bxd3 {[%emt 0:01:03]} Nc6 {[%emt 0:00:12]} 5. f4 {[%emt 0:01:00]} g6 {[%emt 0:02:45]} 6. Nf3 {[%emt 0:02:13]} Bg7 {[%emt 0:02:48]} 7. O-O {[%emt 0:01:36]} e6 {[%emt 0:03:31]} 8. Be3 {[%emt 0:01:31]} Nge7 {[%emt 0:00:41]} 9. Nbd2 {[%emt 0:01:55]} O-O {[%emt 0:03:54]} 10. Qe2 {[%emt 0:05:33]} d5 {[%emt 0:06:14]} 11. e5 {[%emt 0:01:37]} a6 {[%emt 0:12:57]} 12. a4 {[%emt 0:01:31]} Bd7 {[%emt 0:04:39]} 13. Nd4 {[%emt 0:01:59]} Nxd4 {[%emt 0:01:02]} 14. Bxd4 {[%emt 0:01:57]} Nc6 {[%emt 0:01:07]} 15. Bc5 {[%emt 0:02:41]} Re8 {[%emt 0:00:07]} 16. Nf3 {[%emt 0:04:25]} Rb8 {[%emt 0:16:42]} 17. Bd6 {[%emt 0:03:19]} Qb6+ {[%emt 0:05:47]} 18. Kh1 {[%emt 0:01:30]} Rbc8 {[%emt 0:00:20]} 19. b4 {[%emt 0:04:05]} Bf8 {[%emt 0:05:26]} 20. a5 {[%emt 0:03:37]} Qa7 {[%emt 0:02:23]} 21. Bxf8 {[%emt 0:01:07]} Rxf8 {[%emt 0:00:02]} 22. Qd2 {[%emt 0:12:53]} Rfd8 {[%emt 0:05:16]} 23. Rfc1 {[%emt 0:04:12]} Be8 {[%emt 0:03:51]} 24. Be2 {[%emt 0:05:11]} Rc7 {[%emt 0:02:25]} 25. Nd4 {[%emt 0:02:23]} Nxd4 {[%emt 0:00:09]} 26. Qxd4 {[%emt 0:01:26]} Qxd4 {[%emt 0:00:07]} 27. cxd4 {[%emt 0:00:08]} Rdc8 {[%emt 0:00:04]} 28. Rc5 {[%emt 0:00:51]} Kf8 {[%emt 0:03:59]} 29. Rac1 {[%emt 0:00:44]} Rxc5 {[%emt 0:00:35]} 30. bxc5 {[%emt 0:02:07]} Ke7 {[%emt 0:01:06]} 31. Rb1 {[%emt 0:00:34]} Bc6 {[%emt 0:00:45]} 32. g4 {[%emt 0:01:06]} Kd7 {[%emt 0:02:53]} 33. g5 {[%emt 0:01:39]} h6 {[%emt 0:02:22]} 34. Kg2 {[%emt 0:00:31]} h5 {[%emt 0:01:56]} 35. h4 1/2-1/2

[Event "CZE-ch U12 Open 2023"]
[Site "Teplice"]
[Date "2023.03.13"]
[Round "4.6"]
[White "Rudlof, Adam"]
[Black "Hladky, Mikulas"]
[Result "0-1"]
[ECO "C55"]
[WhiteElo "1409"]
[BlackElo "1476"]
[Annotator "NA RC COMBH"]
[PlyCount "90"]
[EventDate "2023.03.09"]
[EventType "swiss"]
[EventCountry "CZE"]
[SourceTitle "playchess.com"]
[Source "ChessBase"]
[SourceQuality "1"]
[TimeControl "40/5400+30:1800+30"]

1. e4 {[%emt 0:00:04]} e5 {[%emt 0:04:51]} 2. Nf3 {[%emt 0:00:08]} Nc6 {[%emt 0:00:05]} 3. Bc4 {[%emt 0:00:09]} Nf6 {[%emt 0:00:10]} 4. d4 {[%emt 0:00:15]} exd4 {[%emt 0:00:45]} 5. e5 {[%emt 0:00:08]} d5 {[%emt 0:00:28]} 6. Bb5 {[%emt 0:02:52]} Ne4 {[%emt 0:00:44]} 7. O-O {[%emt 0:01:47]} Bc5 {[%emt 0:05:53]} 8. Nxd4 {[%emt 0:01:36]} Bd7 {[%emt 0:00:24]} 9. Be3 {[%emt 0:01:18]} Bb6 {[%emt 0:01:08]} 10. Bxc6 {[%emt 0:09:33]} bxc6 {[%emt 0:00:33]} 11. c3 {[%emt 0:04:01]} O-O {[%emt 0:00:55]} 12. Nd2 {[%emt 0:00:09]} Nxd2 13. Qxd2 {[%emt 0:01:30]} Re8 {[%emt 0:08:01]} 14. Nf3 {[%emt 0:00:25]} Bg4 {[%emt 0:01:01]} 15. Nd4 {[%emt 0:03:00]} c5 {[%emt 0:02:16]} 16. Nb3 {[%emt 0:00:11]} c4 {[%emt 0:01:42]} 17. Bxb6 {[%emt 0:02:36]} axb6 {[%emt 0:10:25]} 18. Nd4 {[%emt 0:03:07]} Rxe5 {[%emt 0:10:49]} 19. Nc6 {[%emt 0:02:28]} Re2 {[%emt 0:00:08]} 20. Qd4 {[%emt 0:02:34]} Qg5 {[%emt 0:00:38]} 21. f4 {[%emt 0:06:02]} Qf5 {[%emt 0:18:09]} 22. Ne5 {[%emt 0:06:30]} Qe6 {[%emt 0:03:02]} 23. Rfe1 {[%emt 0:08:09]} c5 {[%emt 0:01:45]} 24. Qd1 {[%emt 0:04:54]} Rxg2+ {[%emt 0:00:28]} 25. Kxg2 {[%emt 0:00:08]} Bxd1 {[%emt 0:00:14]} 26. Raxd1 {[%emt 0:00:42]} f6 {[%emt 0:03:38]} 27. Nf3 {[%emt 0:00:56]} Qg4+ {[%emt 0:00:06]} 28. Kf2 {[%emt 0:00:07]} Rxa2 {[%emt 0:00:40]} 29. Re2 {[%emt 0:01:03]} Qxf4 {[%emt 0:01:57]} 30. Rxd5 {[%emt 0:00:12]} g5 {[%emt 0:01:14]} 31. Rd7 {[%emt 0:01:35]} Kf8 {[%emt 0:03:25]} 32. h3 {[%emt 0:07:23]} h5 {[%emt 0:00:42]} 33. Kg2 {[%emt 0:03:43]} g4 {[%emt 0:00:59]} 34. Rd8+ {[%emt 0:01:47]} Kf7 {[%emt 0:01:35]} 35. Ng1 {[%emt 0:08:12]} gxh3+ {[%emt 0:02:07]} 36. Kxh3 {[%emt 0:00:16]} h4 {[%emt 0:03:16]} 37. Rg2 {[%emt 0:00:08]} Rxb2 {[%emt 0:00:40]} 38. Rd7+ {[%emt 0:02:53]} Ke6 {[%emt 0:00:21]} 39. Rd8 {[%emt 0:02:13]} Rxg2 {[%emt 0:00:27]} 40. Kxg2 {[%emt 0:00:09]} Qg3+ {[%emt 0:00:08]} 41. Kf1 {[%emt 0:30:16]} Qxc3 {[%emt 0:30:30]} 42. Ne2 {[%emt 0:00:13]} Qf3+ {[%emt 0:00:16]} 43. Ke1 {[%emt 0:00:07]} Ke7 {[%emt 0:00:25]} 44. Rb8 {[%emt 0:00:39]} h3 {[%emt 0:00:15]} 45. Rh8 {[%emt 0:01:23]} Qg2 {[%emt 0:00:26]} 0-1

[Event "CZE-ch U12 Open 2023"]
[Site "Teplice"]
[Date "2023.03.13"]
[Round "4.7"]
[White "Migalko, Dmitriy"]
[Black "Mikulka, Martin Michael"]
[Result "0-1"]
[ECO "C01"]
[WhiteElo "1581"]
[BlackElo "1786"]
[Annotator "NA COMBH"]
[PlyCount "136"]
[EventDate "2023.03.09"]
[EventType "swiss"]
[EventCountry "CZE"]
[SourceTitle "playchess.com"]
[Source "ChessBase"]
[SourceQuality "1"]
[TimeControl "40/5400+30:1800+30"]

1. e4 {[%emt 0:00:02]} e6 {[%emt 0:00:08]} 2. d4 {[%emt 0:00:37]} d5 {[%emt 0:00:18]} 3. exd5 {[%emt 0:00:18]} exd5 {[%emt 0:00:09]} 4. c4 {[%emt 0:00:50]} Nf6 {[%emt 0:00:14]} 5. Nc3 {[%emt 0:00:26]} Bb4 {[%emt 0:00:07]} 6. Bd3 {[%emt 0:01:29]} O-O {[%emt 0:00:38]} 7. Bg5 {[%emt 0:03:20]} dxc4 {[%emt 0:01:53]} 8. Bxc4 {[%emt 0:00:28]} h6 {[%emt 0:01:25]} 9. Bh4 {[%emt 0:01:22]} Nc6 {[%emt 0:03:25]} 10. Nge2 {[%emt 0:01:54]} Bg4 {[%emt 0:03:14]} 11. f3 {[%emt 0:01:41]} Bf5 {[%emt 0:00:30]} 12. O-O {[%emt 0:02:34]} Be7 {[%emt 0:01:55]} 13. Bf2 {[%emt 0:02:38]} Qd7 {[%emt 0:05:22]} 14. a3 {[%emt 0:13:15]} Rad8 {[%emt 0:04:59]} 15. Qd2 {[%emt 0:05:36]} Rfe8 {[%emt 0:06:53]} 16. Rad1 {[%emt 0:03:41]} Bf8 {[%emt 0:09:29]} 17. Bb5 {[%emt 0:11:38]} a6 {[%emt 0:03:40]} 18. Ba4 {[%emt 0:02:27]} b5 {[%emt 0:03:13]} 19. Bc2 {[%emt 0:01:43]} Bxc2 {[%emt 0:02:47]} 20. Qxc2 {[%emt 0:00:06]} b4 {[%emt 0:02:13]} 21. Ne4 {[%emt 0:03:28]} Nd5 {[%emt 0:02:05]} 22. Qc4 {[%emt 0:03:56]} bxa3 {[%emt 0:08:06]} 23. bxa3 {[%emt 0:00:54]} Bd6 {[%emt 0:06:40]} 24. Rc1 {[%emt 0:04:40]} Nce7 {[%emt 0:00:55]} 25. Nxd6 {[%emt 0:08:22]} Qxd6 {[%emt 0:01:44]} 26. Nc3 {[%emt 0:03:07]} Nxc3 {[%emt 0:01:05]} 27. Qxc3 {[%emt 0:01:51]} Nd5 {[%emt 0:00:28]} 28. Qc6 {[%emt 0:02:06]} Re6 {[%emt 0:04:07]} 29. Qxd6 {[%emt 0:00:47]} Rdxd6 {[%emt 0:00:34]} 30. Rc5 {[%emt 0:01:01]} Rd7 {[%emt 0:02:43]} 31. Rfc1 {[%emt 0:00:52]} Rb6 {[%emt 0:01:03]} 32. Bg3 {[%emt 0:05:09]} Rb3 {[%emt 0:02:36]} 33. Ra5 {[%emt 0:04:23]} Nc3 {[%emt 0:03:36]} 34. Kf1 {[%emt 0:01:27]} Rxd4 {[%emt 0:01:25]} 35. Be5 {[%emt 0:03:02]} Ra4 {[%emt 0:01:33]} 36. Bxc7 {[%emt 0:01:45]} Raxa3 {[%emt 0:01:13]} 37. Ra1 {[%emt 0:00:30]} Rxa1+ {[%emt 0:00:38]} 38. Rxa1 {[%emt 0:00:11]} Rb1+ {[%emt 0:00:09]} 39. Rxb1 {[%emt 0:00:05]} Nxb1 {[%emt 0:00:05]} 40. Ke2 {[%emt 0:00:14]} Nc3+ 41. Kd3 {[%emt 0:30:33]} Nd5 {[%emt 0:31:44]} 42. Bd6 {[%emt 0:00:16]} Kh7 {[%emt 0:02:49]} 43. Kd4 {[%emt 0:00:19]} Nb6 {[%emt 0:00:34]} 44. Kc5 {[%emt 0:01:00]} Na4+ {[%emt 0:00:08]} 45. Kb4 {[%emt 0:00:48]} Nb2 {[%emt 0:01:05]} 46. Bg3 {[%emt 0:00:43]} Kg6 {[%emt 0:01:34]} 47. Ka5 {[%emt 0:00:56]} Nc4+ {[%emt 0:00:09]} 48. Kxa6 {[%emt 0:00:03]} Ne3 {[%emt 0:00:07]} 49. Kb5 {[%emt 0:00:13]} Nxg2 {[%emt 0:00:36]} 50. Kc4 {[%emt 0:00:55]} Ne3+ {[%emt 0:00:05]} 51. Kd3 {[%emt 0:00:10]} Nd5 {[%emt 0:01:34]} 52. Ke4 {[%emt 0:01:29]} Nf6+ {[%emt 0:00:08]} 53. Ke5 {[%emt 0:01:22]} Nd7+ {[%emt 0:00:34]} 54. Kd6 {[%emt 0:00:34]} Nf8 {[%emt 0:01:09]} 55. Ke5 {[%emt 0:00:33]} Kh5 {[%emt 0:00:37]} 56. h3 {[%emt 0:01:05]} Nh7 {[%emt 0:00:32]} 57. f4 {[%emt 0:00:45]} Kg6 {[%emt 0:01:22]} 58. Bh4 {[%emt 0:01:10]} Nf8 {[%emt 0:00:33]} 59. Bg3 {[%emt 0:00:44]} Nd7+ {[%emt 0:00:08]} 60. Ke4 {[%emt 0:00:13]} f6 {[%emt 0:00:47]} 61. Kd5 {[%emt 0:00:35]} Kf5 {[%emt 0:00:41]} 62. Kd6 {[%emt 0:00:57]} Nf8 {[%emt 0:00:22]} 63. Ke7 {[%emt 0:00:06]} Ne6 {[%emt 0:01:09]} 64. Kf7 {[%emt 0:00:06]} Nxf4 {[%emt 0:00:45]} 65. Bxf4 {[%emt 0:00:09]} Kxf4 {[%emt 0:00:07]} 66. Kxg7 {[%emt 0:00:02]} Kg5 {[%emt 0:00:08]} 67. h4+ {[%emt 0:00:28]} Kxh4 {[%emt 0:00:10]} 68. Kxf6 {[%emt 0:00:03]} Kg4 {[%emt 0:00:08]} 0-1

[Event "CZE-ch U12 Open 2023"]
[Site "Teplice"]
[Date "2023.03.13"]
[Round "4.8"]
[White "Komarek, Tobias"]
[Black "Maly, Jiri"]
[Result "1-0"]
[ECO "A11"]
[WhiteElo "1515"]
[BlackElo "1520"]
[Annotator "NA RC COMBH"]
[PlyCount "55"]
[EventDate "2023.03.09"]
[EventType "swiss"]
[EventCountry "CZE"]
[SourceTitle "playchess.com"]
[Source "ChessBase"]
[SourceQuality "1"]
[TimeControl "40/5400+30:1800+30"]

1. c4 {[%emt 0:04:42]} c6 {[%emt 0:00:23]} 2. g3 {[%emt 0:00:22]} Nf6 {[%emt 0:00:49]} 3. Bg2 {[%emt 0:00:12]} d5 {[%emt 0:00:40]} 4. cxd5 {[%emt 0:00:24]} cxd5 {[%emt 0:00:51]} 5. d4 {[%emt 0:01:02]} Bf5 {[%emt 0:02:50]} 6. Nc3 {[%emt 0:01:00]} e6 {[%emt 0:00:53]} 7. Bf4 {[%emt 0:00:24]} Bd6 {[%emt 0:02:38]} 8. Bxd6 {[%emt 0:00:53]} Qxd6 {[%emt 0:00:54]} 9. Nf3 {[%emt 0:01:08]} Nc6 {[%emt 0:04:42]} 10. O-O {[%emt 0:01:17]} h6 {[%emt 0:01:45]} 11. Qb3 {[%emt 0:00:51]} b6 {[%emt 0:15:32]} 12. Nb5 {[%emt 0:01:15]} Qd7 {[%emt 0:02:01]} 13. Qa3 {[%emt 0:01:48]} Ne7 {[%emt 0:03:29]} 14. Nd6+ {[%emt 0:00:42]} Kf8 {[%emt 0:02:42]} 15. Ne5 {[%emt 0:01:33]} Qc7 {[%emt 0:02:25]} 16. Rac1 {[%emt 0:01:40]} Qb8 {[%emt 0:02:53]} 17. Nxf5 {[%emt 0:04:10]} exf5 {[%emt 0:02:46]} 18. Bxd5 {[%emt 0:00:13]} Ke8 {[%emt 0:09:33]} 19. Bxa8 {[%emt 0:01:15]} Qxa8 {[%emt 0:00:21]} 20. Qa4+ {[%emt 0:01:54]} Kf8 {[%emt 0:02:16]} 21. Nd7+ {[%emt 0:00:24]} Kg8 {[%emt 0:01:34]} 22. Nxf6+ {[%emt 0:00:14]} gxf6 {[%emt 0:00:14]} 23. Rc7 {[%emt 0:00:06]} Ng6 {[%emt 0:01:46]} 24. Rfc1 {[%emt 0:00:30]} Kg7 {[%emt 0:01:55]} 25. Rxa7 {[%emt 0:00:10]} Qe4 {[%emt 0:01:58]} 26. Qc4 {[%emt 0:01:07]} Ne7 {[%emt 0:02:43]} 27. d5 {[%emt 0:00:52]} Qe5 {[%emt 0:02:33]} 28. Qc7 {[%emt 0:00:17]} 1-0